[Event "Titled Tuesday Blitz May 30 Early 2023"]
[White "Bluebaum, Matthias"]
[Black "NikaVolkov"]
[WhiteFideId "24651516"]
[WhiteElo "2639"]
[BlackElo "2613"]
[Result "1/2-1/2"]
[Round "02"]
[TimeControl "180+2"]
[Date "2023.05.30"]
[WhiteClock "0:00:38"]
[BlackClock "0:00:19"]

1. d4 {[%clk 0:03:00]}  d5 {[%clk 0:02:59]} 2. c4 {[%clk 0:03:01]}  e6 {[%clk 0:02:59]} 3. Nc3 {[%clk 0:03:01]}  Nf6 {[%clk 0:03:00]} 4. cxd5 {[%clk 0:03:01]}  exd5 {[%clk 0:03:01]} 5. Bg5 {[%clk 0:03:01]}  Be7 {[%clk 0:03:02]} 6. e3 {[%clk 0:03:01]}  O-O {[%clk 0:03:02]} 7. Bd3 {[%clk 0:03:02]}  Be6 {[%clk 0:03:03]} 8. Nge2 {[%clk 0:03:01]}  Nbd7 {[%clk 0:03:03]} 9. Nf4 {[%clk 0:02:58]}  Re8 {[%clk 0:03:03]} 10. Nxe6 {[%clk 0:02:57]}  fxe6 {[%clk 0:03:04]} 11. O-O {[%clk 0:02:56]}  Nf8 {[%clk 0:03:03]} 12. Rc1 {[%clk 0:02:49]}  Rc8 {[%clk 0:03:02]} 13. Qb3 {[%clk 0:02:49]}  Rb8 {[%clk 0:02:26]} 14. Rfd1 {[%clk 0:02:44]}  a6 {[%clk 0:02:21]} 15. Bf4 {[%clk 0:02:39]}  Bd6 {[%clk 0:02:21]} 16. Ne2 {[%clk 0:02:35]}  c6 {[%clk 0:02:13]} 17. h3 {[%clk 0:02:31]}  Bxf4 {[%clk 0:02:12]} 18. Nxf4 {[%clk 0:02:32]}  e5 {[%clk 0:02:11]} 19. dxe5 {[%clk 0:02:26]}  Rxe5 {[%clk 0:02:12]} 20. e4 {[%clk 0:02:09]}  Ne6 {[%clk 0:01:09]} 21. exd5 {[%clk 0:01:46]}  Nxd5 {[%clk 0:01:03]} 22. Nxd5 {[%clk 0:01:40]}  cxd5 {[%clk 0:01:02]} 23. Re1 {[%clk 0:01:34]}  Qf6 {[%clk 0:00:55]} 24. Bf1 {[%clk 0:01:22]}  Rf8 {[%clk 0:00:40]} 25. Rxe5 {[%clk 0:01:18]}  Qxe5 {[%clk 0:00:41]} 26. Qxb7 {[%clk 0:01:07]}  Qd4 {[%clk 0:00:41]} 27. Rc2 {[%clk 0:01:04]}  Ng5 {[%clk 0:00:39]} 28. Qxa6 {[%clk 0:00:58]}  Ne4 {[%clk 0:00:22]} 29. Qd3 {[%clk 0:00:58]}  Qe5 {[%clk 0:00:21]} 30. Re2 {[%clk 0:00:54]}  Qg5 {[%clk 0:00:17]} 31. Qd4 {[%clk 0:00:50]}  h6 {[%clk 0:00:16]} 32. f3 {[%clk 0:00:47]}  Rxf3 {[%clk 0:00:15]} 33. h4 {[%clk 0:00:37]}  Rxf1+ {[%clk 0:00:10]} 34. Kxf1 {[%clk 0:00:38]}  Ng3+ {[%clk 0:00:10]} 35. Kf2 {[%clk 0:00:28]}  Nxe2 {[%clk 0:00:10]} 36. Kxe2 {[%clk 0:00:27]}  Qxg2+ {[%clk 0:00:11]} 37. Kd1 {[%clk 0:00:26]}  g5 {[%clk 0:00:10]} 38. hxg5 {[%clk 0:00:26]}  hxg5 {[%clk 0:00:10]} 39. a4 {[%clk 0:00:27]}  g4 {[%clk 0:00:11]} 40. a5 {[%clk 0:00:27]}  g3 {[%clk 0:00:12]} 41. a6 {[%clk 0:00:26]}  Qf1+ {[%clk 0:00:12]} 42. Kd2 {[%clk 0:00:27]}  Qxa6 {[%clk 0:00:04]} 43. Qxd5+ {[%clk 0:00:28]}  Kh7 {[%clk 0:00:04]} 44. Qe4+ {[%clk 0:00:26]}  Qg6 {[%clk 0:00:04]} 45. Qh4+ {[%clk 0:00:26]}  Qh6+ {[%clk 0:00:04]} 46. Qxh6+ {[%clk 0:00:25]}  Kxh6 {[%clk 0:00:04]} 47. Ke3 {[%clk 0:00:26]}  Kg6 {[%clk 0:00:05]} 48. Kf3 {[%clk 0:00:26]}  Kf5 {[%clk 0:00:06]} 49. Kxg3 {[%clk 0:00:25]}  Ke5 {[%clk 0:00:07]} 50. Kf2 {[%clk 0:00:25]}  Kd4 {[%clk 0:00:08]} 51. Ke2 {[%clk 0:00:25]}  Kc4 {[%clk 0:00:09]} 52. Kd2 {[%clk 0:00:26]}  Kb3 {[%clk 0:00:10]} 53. Kc1 {[%clk 0:00:27]}  Kb4 {[%clk 0:00:10]} 54. Kc2 {[%clk 0:00:27]}  Kc4 {[%clk 0:00:11]} 55. Kb1 {[%clk 0:00:28]}  Kb3 {[%clk 0:00:11]} 56. Ka1 {[%clk 0:00:29]}  Kb4 {[%clk 0:00:12]} 57. Ka2 {[%clk 0:00:30]}  Ka4 {[%clk 0:00:13]} 58. Kb1 {[%clk 0:00:30]}  Kb3 {[%clk 0:00:13]} 59. Kc1 {[%clk 0:00:31]}  Kb4 {[%clk 0:00:14]} 60. Kc2 {[%clk 0:00:31]}  Kc4 {[%clk 0:00:15]} 61. b3+ {[%clk 0:00:32]}  Kb4 {[%clk 0:00:16]} 62. Kb2 {[%clk 0:00:33]}  Kb5 {[%clk 0:00:16]} 63. Kc3 {[%clk 0:00:33]}  Kc5 {[%clk 0:00:17]} 64. b4+ {[%clk 0:00:33]}  Kb5 {[%clk 0:00:17]} 65. Kb3 {[%clk 0:00:34]}  Kb6 {[%clk 0:00:18]} 66. Ka4 {[%clk 0:00:35]}  Ka6 {[%clk 0:00:18]} 67. Ka3 {[%clk 0:00:36]}  Kb5 {[%clk 0:00:18]} 68. Kb3 {[%clk 0:00:37]}  Kb6 {[%clk 0:00:19]} 69. Kc3 {[%clk 0:00:37]}  Kb5 {[%clk 0:00:19]} 70. Kb3 {[%clk 0:00:38]} 1/2-1/2


[Site "https://www.chess.com"]

[Event "Titled Tuesday Blitz May 30 Early 2023"]
[White "Iskusnyh, Sergei"]
[Black "Duda, Jan-Krzysztof"]
[WhiteFideId "4120027"]
[BlackFideId "1170546"]
[WhiteElo "2492"]
[BlackElo "2790"]
[Result "0-1"]
[Round "02"]
[TimeControl "180+2"]
[Date "2023.05.30"]
[WhiteClock "0:00:00"]
[BlackClock "0:01:19"]

1. d4 {[%clk 0:02:48]}  f5 {[%clk 0:02:57]} 2. c4 {[%clk 0:02:47]}  Nf6 {[%clk 0:02:57]} 3. Nf3 {[%clk 0:02:41]}  g6 {[%clk 0:02:56]} 4. e3 {[%clk 0:02:37]}  Bg7 {[%clk 0:02:56]} 5. b4 {[%clk 0:02:35]}  O-O {[%clk 0:02:55]} 6. Bb2 {[%clk 0:02:35]}  d6 {[%clk 0:02:56]} 7. Be2 {[%clk 0:02:34]}  e5 {[%clk 0:02:41]} 8. dxe5 {[%clk 0:02:29]}  Nfd7 {[%clk 0:02:41]} 9. Nbd2 {[%clk 0:01:41]}  dxe5 {[%clk 0:02:41]} 10. Qb3 {[%clk 0:01:34]}  Qe7 {[%clk 0:02:37]} 11. c5+ {[%clk 0:01:25]}  Kh8 {[%clk 0:02:37]} 12. Nc4 {[%clk 0:01:25]}  a5 {[%clk 0:02:28]} 13. a3 {[%clk 0:01:16]}  Nc6 {[%clk 0:02:18]} 14. O-O {[%clk 0:01:12]}  e4 {[%clk 0:02:19]} 15. Nfd2 {[%clk 0:00:59]}  Nde5 {[%clk 0:02:07]} 16. Nxe5 {[%clk 0:00:58]}  Nxe5 {[%clk 0:02:07]} 17. Bd4 {[%clk 0:00:34]}  Be6 {[%clk 0:01:52]} 18. Qb2 {[%clk 0:00:33]}  Nc6 {[%clk 0:01:52]} 19. Bxg7+ {[%clk 0:00:19]}  Qxg7 {[%clk 0:01:53]} 20. Qxg7+ {[%clk 0:00:19]}  Kxg7 {[%clk 0:01:54]} 21. b5 {[%clk 0:00:19]}  Ne5 {[%clk 0:01:55]} 22. Rfd1 {[%clk 0:00:16]}  Rfd8 {[%clk 0:01:53]} 23. Kf1 {[%clk 0:00:12]}  Kf6 {[%clk 0:01:52]} 24. Ke1 {[%clk 0:00:12]}  Rd5 {[%clk 0:01:43]} 25. f4 {[%clk 0:00:11]}  exf3 {[%clk 0:01:35]} 26. Bxf3 {[%clk 0:00:10]}  Nxf3+ {[%clk 0:01:31]} 27. Nxf3 {[%clk 0:00:10]}  Rxc5 {[%clk 0:01:31]} 28. Rac1 {[%clk 0:00:09]}  Rxc1 {[%clk 0:01:23]} 29. Rxc1 {[%clk 0:00:10]}  Rc8 {[%clk 0:01:24]} 30. Nd4 {[%clk 0:00:10]}  Bd5 {[%clk 0:01:22]} 31. g3 {[%clk 0:00:08]}  Ke5 {[%clk 0:01:22]} 32. Kd2 {[%clk 0:00:05]}  c5 {[%clk 0:01:21]} 33. bxc6 {[%clk 0:00:04]}  bxc6 {[%clk 0:01:22]} 34. Rc5 {[%clk 0:00:05]}  Ra8 {[%clk 0:01:22]} 35. Ne2 {[%clk 0:00:02]}  Kd6 {[%clk 0:01:22]} 36. Rc3 {[%clk 0:00:03]}  Rb8 {[%clk 0:01:21]} 37. Nf4 {[%clk 0:00:00]}  Be4 {[%clk 0:01:19]} 0-1


[Site "https://www.chess.com"]

[Event "Titled Tuesday Blitz May 30 Early 2023"]
[White "Dubov, Daniil"]
[Black "Sadykov, Ramil"]
[WhiteFideId "24126055"]
[BlackFideId "24113590"]
[WhiteElo "2793"]
[BlackElo "2245"]
[Result "1-0"]
[Round "02"]
[TimeControl "180+2"]
[Date "2023.05.30"]
[WhiteClock "0:00:03"]
[BlackClock "0:00:00"]

1. c4 {[%clk 0:03:00]}  e6 {[%clk 0:02:57]} 2. Nc3 {[%clk 0:03:00]}  d5 {[%clk 0:02:56]} 3. d4 {[%clk 0:03:01]}  Nf6 {[%clk 0:02:56]} 4. Nf3 {[%clk 0:03:01]}  Be7 {[%clk 0:02:56]} 5. g3 {[%clk 0:03:00]}  O-O {[%clk 0:02:55]} 6. Bg2 {[%clk 0:03:00]}  c6 {[%clk 0:02:55]} 7. O-O {[%clk 0:03:00]}  Nbd7 {[%clk 0:02:54]} 8. Bf4 {[%clk 0:02:58]}  Nh5 {[%clk 0:02:48]} 9. Bc1 {[%clk 0:02:58]}  Nhf6 {[%clk 0:02:46]} 10. b3 {[%clk 0:02:55]}  b6 {[%clk 0:02:46]} 11. Qd3 {[%clk 0:02:51]}  Bb7 {[%clk 0:02:16]} 12. Rd1 {[%clk 0:02:38]}  Rc8 {[%clk 0:02:06]} 13. Bb2 {[%clk 0:02:28]}  Qc7 {[%clk 0:02:02]} 14. Rac1 {[%clk 0:02:27]}  Qb8 {[%clk 0:02:02]} 15. e4 {[%clk 0:02:13]}  dxe4 {[%clk 0:02:00]} 16. Nxe4 {[%clk 0:02:14]}  Nxe4 {[%clk 0:01:47]} 17. Qxe4 {[%clk 0:02:15]}  Nf6 {[%clk 0:01:47]} 18. Qe2 {[%clk 0:02:14]}  Rfd8 {[%clk 0:01:44]} 19. Ne5 {[%clk 0:01:40]}  c5 {[%clk 0:01:39]} 20. d5 {[%clk 0:01:33]}  exd5 {[%clk 0:01:19]} 21. cxd5 {[%clk 0:01:33]}  Bxd5 {[%clk 0:01:14]} 22. Bxd5 {[%clk 0:01:08]}  Nxd5 {[%clk 0:01:12]} 23. Nxf7 {[%clk 0:00:51]}  Kxf7 {[%clk 0:01:03]} 24. Rxd5 {[%clk 0:00:35]}  Rxd5 {[%clk 0:00:52]} 25. Qf3+ {[%clk 0:00:36]}  Ke6 {[%clk 0:00:53]} 26. Re1+ {[%clk 0:00:36]}  Kd6 {[%clk 0:00:51]} 27. Qf7 {[%clk 0:00:30]}  Kc6 {[%clk 0:00:35]} 28. Rxe7 {[%clk 0:00:30]}  Rcd8 {[%clk 0:00:20]} 29. Bxg7 {[%clk 0:00:16]}  Kb5 {[%clk 0:00:12]} 30. Qf3 {[%clk 0:00:11]}  Ka6 {[%clk 0:00:08]} 31. Kg2 {[%clk 0:00:10]}  Qa8 {[%clk 0:00:05]} 32. Re4 {[%clk 0:00:10]}  Rd3 {[%clk 0:00:05]} 33. Ra4+ {[%clk 0:00:07]}  Kb5 {[%clk 0:00:04]} 34. Qxa8 {[%clk 0:00:07]}  Rxa8 {[%clk 0:00:05]} 35. Rh4 {[%clk 0:00:08]}  Re8 {[%clk 0:00:05]} 36. Bf6 {[%clk 0:00:05]}  Re2 {[%clk 0:00:05]} 37. a4+ {[%clk 0:00:05]}  Ka6 {[%clk 0:00:05]} 38. Rxh7 {[%clk 0:00:06]}  Rxb3 {[%clk 0:00:05]} 39. h4 {[%clk 0:00:04]}  c4 {[%clk 0:00:05]} 40. Rc7 {[%clk 0:00:03]}  b5 {[%clk 0:00:05]} 41. axb5+ {[%clk 0:00:03]}  Kxb5 {[%clk 0:00:05]} 42. h5 {[%clk 0:00:03]}  Re6 {[%clk 0:00:04]} 43. Bg7 {[%clk 0:00:04]}  Rc6 {[%clk 0:00:04]} 44. Rxa7 {[%clk 0:00:03]}  c3 {[%clk 0:00:04]} 45. h6 {[%clk 0:00:03]}  c2 {[%clk 0:00:04]} 46. h7 {[%clk 0:00:04]}  c1=Q {[%clk 0:00:04]} 47. h8=Q {[%clk 0:00:02]}  Qc4 {[%clk 0:00:05]} 48. Qb8+ {[%clk 0:00:02]}  Rb6 {[%clk 0:00:05]} 49. Qe5+ {[%clk 0:00:02]}  Qc5 {[%clk 0:00:05]} 50. Qe2+ {[%clk 0:00:03]}  Qc4 {[%clk 0:00:05]} 51. Ra5+ {[%clk 0:00:03]}  Kb4 {[%clk 0:00:04]} 52. Ra4+ {[%clk 0:00:03]}  Kxa4 {[%clk 0:00:04]} 53. Qxc4+ {[%clk 0:00:04]}  Ka5 {[%clk 0:00:00]} 54. Bc3+ {[%clk 0:00:03]} 1-0


[Site "https://www.chess.com"]

[Event "Titled Tuesday Blitz May 30 Early 2023"]
[White "Antal, Gergely"]
[Black "Sjugirov, Sanan"]
[WhiteFideId "717312"]
[BlackFideId "4189302"]
[WhiteElo "2471"]
[BlackElo "2569"]
[Result "0-1"]
[Round "02"]
[TimeControl "180+2"]
[Date "2023.05.30"]
[WhiteClock "0:00:11"]
[BlackClock "0:00:02"]

1. Nf3 {[%clk 0:03:00]}  Nf6 {[%clk 0:02:56]} 2. g3 {[%clk 0:02:59]}  b5 {[%clk 0:02:55]} 3. Bg2 {[%clk 0:03:00]}  Bb7 {[%clk 0:02:55]} 4. O-O {[%clk 0:03:00]}  e6 {[%clk 0:02:54]} 5. d4 {[%clk 0:03:00]}  Be7 {[%clk 0:02:48]} 6. c3 {[%clk 0:03:00]}  O-O {[%clk 0:02:39]} 7. Bf4 {[%clk 0:02:59]}  d5 {[%clk 0:02:34]} 8. a4 {[%clk 0:02:54]}  b4 {[%clk 0:02:34]} 9. cxb4 {[%clk 0:02:52]}  Bxb4 {[%clk 0:02:34]} 10. Qc2 {[%clk 0:02:51]}  Na6 {[%clk 0:02:27]} 11. Ne5 {[%clk 0:02:42]}  c5 {[%clk 0:02:21]} 12. Nd3 {[%clk 0:02:17]}  cxd4 {[%clk 0:01:56]} 13. Qb3 {[%clk 0:02:17]}  Qe7 {[%clk 0:01:56]} 14. Nxb4 {[%clk 0:02:09]}  Qxb4 {[%clk 0:01:49]} 15. Qxb4 {[%clk 0:01:38]}  Nxb4 {[%clk 0:01:49]} 16. Na3 {[%clk 0:01:39]}  Rfc8 {[%clk 0:01:34]} 17. Nb5 {[%clk 0:01:36]}  d3 {[%clk 0:01:33]} 18. exd3 {[%clk 0:01:24]}  Nxd3 {[%clk 0:01:33]} 19. Nd6 {[%clk 0:01:18]}  Nxf4 {[%clk 0:01:31]} 20. gxf4 {[%clk 0:01:12]}  Rc7 {[%clk 0:01:22]} 21. f5 {[%clk 0:01:12]}  Rd7 {[%clk 0:01:05]} 22. Nb5 {[%clk 0:00:46]}  exf5 {[%clk 0:00:56]} 23. Nd4 {[%clk 0:00:46]}  g6 {[%clk 0:00:54]} 24. b4 {[%clk 0:00:46]}  Rc8 {[%clk 0:00:49]} 25. Rfc1 {[%clk 0:00:46]}  Rc4 {[%clk 0:00:49]} 26. Rxc4 {[%clk 0:00:44]}  dxc4 {[%clk 0:00:50]} 27. Bxb7 {[%clk 0:00:44]}  Rxb7 {[%clk 0:00:50]} 28. b5 {[%clk 0:00:45]}  Rd7 {[%clk 0:00:34]} 29. Nc6 {[%clk 0:00:44]}  c3 {[%clk 0:00:31]} 30. Rc1 {[%clk 0:00:41]}  Ne4 {[%clk 0:00:30]} 31. f3 {[%clk 0:00:31]}  Nc5 {[%clk 0:00:30]} 32. a5 {[%clk 0:00:32]}  Rd3 {[%clk 0:00:18]} 33. b6 {[%clk 0:00:17]}  axb6 {[%clk 0:00:17]} 34. axb6 {[%clk 0:00:18]}  Kg7 {[%clk 0:00:16]} 35. Kf2 {[%clk 0:00:16]}  Rd6 {[%clk 0:00:15]} 36. Rxc3 {[%clk 0:00:17]}  Rxc6 {[%clk 0:00:15]} 37. b7 {[%clk 0:00:17]}  Rb6 {[%clk 0:00:13]} 38. Rxc5 {[%clk 0:00:18]}  Rxb7 {[%clk 0:00:13]} 39. h4 {[%clk 0:00:18]}  Kh6 {[%clk 0:00:11]} 40. Kg3 {[%clk 0:00:16]}  Kh5 {[%clk 0:00:11]} 41. Rc4 {[%clk 0:00:15]}  h6 {[%clk 0:00:10]} 42. Rd4 {[%clk 0:00:15]}  g5 {[%clk 0:00:08]} 43. hxg5 {[%clk 0:00:16]}  hxg5 {[%clk 0:00:09]} 44. Rd5 {[%clk 0:00:16]}  f4+ {[%clk 0:00:09]} 45. Kh3 {[%clk 0:00:16]}  Rb3 {[%clk 0:00:09]} 46. Kg2 {[%clk 0:00:16]}  Kh4 {[%clk 0:00:07]} 47. Rd2 {[%clk 0:00:16]}  f5 {[%clk 0:00:06]} 48. Rf2 {[%clk 0:00:16]}  Rc3 {[%clk 0:00:06]} 49. Kh2 {[%clk 0:00:16]}  Rc4 {[%clk 0:00:05]} 50. Kg1 {[%clk 0:00:14]}  Kg3 {[%clk 0:00:05]} 51. Rg2+ {[%clk 0:00:15]}  Kxf3 {[%clk 0:00:04]} 52. Rxg5 {[%clk 0:00:15]}  Rc1+ {[%clk 0:00:04]} 53. Kh2 {[%clk 0:00:16]}  Rc2+ {[%clk 0:00:05]} 54. Kg1 {[%clk 0:00:16]}  Rc1+ {[%clk 0:00:04]} 55. Kh2 {[%clk 0:00:17]}  Kf2 {[%clk 0:00:04]} 56. Rxf5 {[%clk 0:00:17]}  f3 {[%clk 0:00:04]} 57. Ra5 {[%clk 0:00:18]}  Kf1 {[%clk 0:00:03]} 58. Ra2 {[%clk 0:00:17]}  f2 {[%clk 0:00:03]} 59. Kg3 {[%clk 0:00:16]}  Rc3+ {[%clk 0:00:03]} 60. Kh2 {[%clk 0:00:15]}  Re3 {[%clk 0:00:03]} 61. Rb2 {[%clk 0:00:14]}  Re1 {[%clk 0:00:02]} 62. Rb1 {[%clk 0:00:11]}  Rxb1 {[%clk 0:00:02]} 0-1


[Site "https://www.chess.com"]

[Event "Titled Tuesday Blitz May 30 Early 2023"]
[White "Pranesh M"]
[Black "Miranda, Rafael"]
[WhiteFideId "35028600"]
[BlackFideId "130990"]
[WhiteElo "2437"]
[BlackElo "2204"]
[Result "1/2-1/2"]
[Round "02"]
[TimeControl "180+2"]
[Date "2023.05.30"]
[WhiteClock "0:01:58"]
[BlackClock "0:01:32"]

1. e4 {[%clk 0:03:00]}  e5 {[%clk 0:03:00]} 2. Nf3 {[%clk 0:03:00]}  Nc6 {[%clk 0:03:00]} 3. Bb5 {[%clk 0:02:59]}  g6 {[%clk 0:03:01]} 4. O-O {[%clk 0:02:58]}  Bg7 {[%clk 0:03:01]} 5. c3 {[%clk 0:02:59]}  Nge7 {[%clk 0:02:59]} 6. d4 {[%clk 0:02:58]}  exd4 {[%clk 0:03:00]} 7. cxd4 {[%clk 0:02:58]}  d5 {[%clk 0:03:01]} 8. e5 {[%clk 0:02:55]}  O-O {[%clk 0:03:00]} 9. h3 {[%clk 0:02:55]}  a6 {[%clk 0:02:58]} 10. Be2 {[%clk 0:02:55]}  f6 {[%clk 0:02:55]} 11. exf6 {[%clk 0:02:55]}  Bxf6 {[%clk 0:02:56]} 12. Bh6 {[%clk 0:02:55]}  Re8 {[%clk 0:02:53]} 13. Bg5 {[%clk 0:02:35]}  Nf5 {[%clk 0:02:29]} 14. Bxf6 {[%clk 0:02:35]}  Qxf6 {[%clk 0:02:30]} 15. Nc3 {[%clk 0:02:35]}  Nfxd4 {[%clk 0:02:25]} 16. Nxd5 {[%clk 0:02:22]}  Nxe2+ {[%clk 0:02:06]} 17. Qxe2 {[%clk 0:02:21]}  Rxe2 {[%clk 0:02:06]} 18. Nxf6+ {[%clk 0:02:22]}  Kg7 {[%clk 0:02:07]} 19. Nd5 {[%clk 0:02:22]}  Rxb2 {[%clk 0:01:59]} 20. Nxc7 {[%clk 0:02:22]}  Rb8 {[%clk 0:02:00]} 21. Rfb1 {[%clk 0:02:16]}  Rxb1+ {[%clk 0:01:57]} 22. Rxb1 {[%clk 0:02:17]}  Bf5 {[%clk 0:01:57]} 23. Rb6 {[%clk 0:02:17]}  Be4 {[%clk 0:01:49]} 24. Ng5 {[%clk 0:02:11]}  Bf5 {[%clk 0:01:31]} 25. Nxa6 {[%clk 0:02:03]}  bxa6 {[%clk 0:01:31]} 26. Rxc6 {[%clk 0:02:04]}  Rb1+ {[%clk 0:01:32]} 27. Kh2 {[%clk 0:02:04]}  Rb2 {[%clk 0:01:33]} 28. Rb6 {[%clk 0:01:58]}  Rxb6 {[%clk 0:01:32]} 1/2-1/2


[Site "https://www.chess.com"]

[Event "Titled Tuesday Blitz May 30 Early 2023"]
[White "Turayev, Shahruh"]
[Black "Narayanan, Srinath"]
[WhiteFideId "14003856"]
[BlackFideId "5018420"]
[WhiteElo "2185"]
[BlackElo "2438"]
[Result "0-1"]
[Round "02"]
[TimeControl "180+2"]
[Date "2023.05.30"]
[WhiteClock "0:00:01"]
[BlackClock "0:00:18"]

1. d4 {[%clk 0:03:00]}  Nf6 {[%clk 0:02:55]} 2. c4 {[%clk 0:03:00]}  e6 {[%clk 0:02:55]} 3. g3 {[%clk 0:03:00]}  d5 {[%clk 0:02:54]} 4. Nf3 {[%clk 0:02:59]}  Bb4+ {[%clk 0:02:51]} 5. Bd2 {[%clk 0:02:59]}  Be7 {[%clk 0:02:52]} 6. Bg2 {[%clk 0:02:58]}  Nbd7 {[%clk 0:02:50]} 7. O-O {[%clk 0:02:57]}  c6 {[%clk 0:02:51]} 8. b4 {[%clk 0:02:55]}  Ne4 {[%clk 0:02:51]} 9. Qb3 {[%clk 0:02:45]}  g5 {[%clk 0:02:42]} 10. a4 {[%clk 0:02:39]}  g4 {[%clk 0:02:42]} 11. Ne5 {[%clk 0:02:39]}  f5 {[%clk 0:02:32]} 12. Bf4 {[%clk 0:02:27]}  h5 {[%clk 0:01:59]} 13. b5 {[%clk 0:02:13]}  Nxe5 {[%clk 0:01:55]} 14. Bxe5 {[%clk 0:02:12]}  Rh7 {[%clk 0:01:56]} 15. f3 {[%clk 0:01:42]}  Nd6 {[%clk 0:01:55]} 16. bxc6 {[%clk 0:01:36]}  bxc6 {[%clk 0:01:54]} 17. cxd5 {[%clk 0:01:36]}  cxd5 {[%clk 0:01:50]} 18. Nc3 {[%clk 0:01:31]}  Nc4 {[%clk 0:01:48]} 19. Bf4 {[%clk 0:01:26]}  Bf6 {[%clk 0:01:48]} 20. Nb5 {[%clk 0:01:25]}  a6 {[%clk 0:01:46]} 21. Na3 {[%clk 0:01:24]}  Bxd4+ {[%clk 0:01:45]} 22. Kh1 {[%clk 0:01:24]}  Bxa1 {[%clk 0:01:44]} 23. Rxa1 {[%clk 0:01:22]}  e5 {[%clk 0:01:41]} 24. Nxc4 {[%clk 0:01:18]}  exf4 {[%clk 0:01:28]} 25. fxg4 {[%clk 0:00:47]}  hxg4 {[%clk 0:01:23]} 26. gxf4 {[%clk 0:00:25]}  dxc4 {[%clk 0:00:23]} 27. Qxc4 {[%clk 0:00:25]}  Qh4 {[%clk 0:00:24]} 28. h3 {[%clk 0:00:11]}  Rb8 {[%clk 0:00:22]} 29. Qg8+ {[%clk 0:00:07]}  Ke7 {[%clk 0:00:22]} 30. Rd1 {[%clk 0:00:07]}  Bb7 {[%clk 0:00:18]} 31. Qxh7+ {[%clk 0:00:01]}  Qxh7 {[%clk 0:00:18]} 0-1


[Site "https://www.chess.com"]

[Event "Titled Tuesday Blitz May 30 Early 2023"]
[White "Fridman, Daniel"]
[Black "Szabo, Marcell"]
[WhiteFideId "11600454"]
[BlackFideId "2072033"]
[WhiteElo "2525"]
[BlackElo "1795"]
[Result "1-0"]
[Round "02"]
[TimeControl "180+2"]
[Date "2023.05.30"]
[WhiteClock "0:00:22"]
[BlackClock "0:00:53"]

1. d4 {[%clk 0:03:00]}  Nf6 {[%clk 0:03:00]} 2. Nf3 {[%clk 0:03:00]}  d5 {[%clk 0:03:00]} 3. c4 {[%clk 0:03:00]}  c6 {[%clk 0:03:01]} 4. g3 {[%clk 0:03:00]}  Bg4 {[%clk 0:03:00]} 5. Ne5 {[%clk 0:02:59]}  Be6 {[%clk 0:03:00]} 6. cxd5 {[%clk 0:02:57]}  Bxd5 {[%clk 0:03:01]} 7. f3 {[%clk 0:02:57]}  Nbd7 {[%clk 0:03:01]} 8. Nc3 {[%clk 0:02:56]}  Be6 {[%clk 0:02:39]} 9. e4 {[%clk 0:02:45]}  Nxe5 {[%clk 0:02:30]} 10. dxe5 {[%clk 0:02:46]}  Qxd1+ {[%clk 0:02:31]} 11. Nxd1 {[%clk 0:02:47]}  Nd7 {[%clk 0:02:31]} 12. f4 {[%clk 0:02:47]}  Bg4 {[%clk 0:02:28]} 13. Nc3 {[%clk 0:02:46]}  O-O-O {[%clk 0:02:27]} 14. h3 {[%clk 0:02:37]}  Bf3 {[%clk 0:02:26]} 15. Rh2 {[%clk 0:02:34]}  Nc5 {[%clk 0:02:26]} 16. Bg2 {[%clk 0:02:05]}  Nd3+ {[%clk 0:02:13]} 17. Kf1 {[%clk 0:02:04]}  Bxg2+ {[%clk 0:02:12]} 18. Rxg2 {[%clk 0:02:05]}  Nxc1 {[%clk 0:02:12]} 19. Rxc1 {[%clk 0:02:04]}  e6 {[%clk 0:02:13]} 20. a3 {[%clk 0:02:00]}  Kb8 {[%clk 0:02:11]} 21. f5 {[%clk 0:01:18]}  Be7 {[%clk 0:02:06]} 22. Ne2 {[%clk 0:01:04]}  Bg5 {[%clk 0:01:49]} 23. Nf4 {[%clk 0:00:56]}  Bxf4 {[%clk 0:01:42]} 24. gxf4 {[%clk 0:00:56]}  Rd4 {[%clk 0:01:43]} 25. Re1 {[%clk 0:00:51]}  g6 {[%clk 0:01:42]} 26. fxe6 {[%clk 0:00:48]}  fxe6 {[%clk 0:01:41]} 27. Kf2 {[%clk 0:00:47]}  Rf8 {[%clk 0:01:34]} 28. Ke3 {[%clk 0:00:46]}  c5 {[%clk 0:01:34]} 29. h4 {[%clk 0:00:45]}  Rfd8 {[%clk 0:01:34]} 30. h5 {[%clk 0:00:41]}  Rd3+ {[%clk 0:01:33]} 31. Kf2 {[%clk 0:00:41]}  gxh5 {[%clk 0:01:22]} 32. f5 {[%clk 0:00:31]}  Rf8 {[%clk 0:01:13]} 33. f6 {[%clk 0:00:31]}  Kc7 {[%clk 0:01:02]} 34. Rg7+ {[%clk 0:00:30]}  Rd7 {[%clk 0:01:02]} 35. Reg1 {[%clk 0:00:23]}  Rff7 {[%clk 0:00:57]} 36. Rxf7 {[%clk 0:00:22]}  Rxf7 {[%clk 0:00:53]} 37. Rg7 {[%clk 0:00:22]} 1-0


[Site "https://www.chess.com"]